bitfinex/quotes_ETHUSD_20220731
["timestamp","ask_amount","ask_price","bid_price","bid_amount"]
[1659286862260,3.4446,1708.2,1707.6,0.05944]
[1659286862901,4.90726,1708.2,1707.6,0.05944]
[1659286863260,4.90726,1708.2,1707.6,3.05944]
[1659286863700,8.79983024,1708.2,1707.6,3.05944]
[1659286863949,8.79983024,1708.2,1707.6,3.06149396]
[1659286864146,4.90726,1708.2,1707.6,3.06149396]
[1659286864807,4.90726,1708.2,1707.6,3.05944]
[1659286865020,8.79983024,1708.2,1707.6,3.05944]
[1659286865400,8.79983024,1708.2,1707.7,0.01984864]
[1659286865606,3.89257024,1708.1,1707.7,0.01984864]
[1659286865802,1.46265,1708.1,1707.7,0.01984864]
[1659286866599,5.35522024,1708.1,1707.7,0.01984864]
[1659286866798,8.79973024,1708.2,1707.7,0.01984864]
[1659286867447,8.79973024,1708.2,1707.8,0.01848807]
[1659286869813,3.4446,1708.2,1707.8,3.51848807]
[1659286870014,3.4446,1708.2,1707.9,3.04308978]
[1659286870213,3.4446,1708.2,1707.9,3.34308978]
[1659286871584,3.4446,1708.2,1707.9,3.36154702]
[1659286872171,3.4446,1708.2,1707.9,3.31845724]
[1659286872373,7.33717024,1708.2,1707.9,0.31845724]
[1659286872545,8.79973024,1708.2,1707.9,0.01845724]
[1659286872742,9.21625956,1708.2,1707.9,0.31845724]
[1659286873555,3.89257024,1708.1,1707.9,0.01845724]
[1659286873761,10.58886024,1708.1,1707.9,0.03769096]
[1659286873959,11.00538956,1708.1,1707.9,0.03769096]
[1659286874168,11.29793956,1708.1,1707.9,0.03769096]
[1659286874371,7.40536932,1708.1,1707.9,0.03769096]
[1659286874572,7.11281932,1708.1,1707.9,0.03769096]
[1659286874781,7.11281932,1708.1,1708.0,0.01977689]
[1659286875646,11.00538956,1708.1,1708.0,0.01977689]
[1659286875856,7.11281932,1708.1,1708.0,0.01977689]
[1659286876274,11.00538956,1708.1,1708.0,0.01977689]
[1659286876474,7.11281932,1708.1,1708.0,0.01977689]
[1659286877354,6.69629,1708.1,1708.0,0.01977689]
[1659286877953,6.69629,1708.1,1708.0,0.03891294]
[1659286879025,10.58886024,1708.1,1708.0,0.01913605]
[1659286879886,10.58886024,1708.1,1708.0,0.03753776]
[1659286880932,7.11281932,1708.1,1708.0,0.03753776]
[1659286882123,11.00538956,1708.1,1708.0,0.03753776]
[1659286882790,11.00212609,1708.1,1708.0,0.03753776]
[1659286884188,7.10955585,1708.1,1708.0,0.03753776]
[1659286884388,11.00212609,1708.1,1708.0,0.03753776]
[1659286884591,13.90017281,1708.1,1708.0,0.01953776]
[1659286884783,13.90017281,1708.1,1707.9,0.01968813]
[1659286884784,12.658,1708.0,1707.9,0.00068813]
[1659286885000,1.46313,1707.9,1707.7,0.17404614]
[1659286885243,2.89804672,1707.8,1707.3,3.05]
[1659286885401,9.71675696,1707.8,1707.3,3.3]
[1659286885607,10.00935696,1707.8,1707.3,3.3]
[1659286885786,6.11678672,1707.8,1707.3,3.3]
[1659286885987,7.57992672,1707.8,1707.3,3.3]
[1659286886187,1.46302,1707.7,1707.2,2.09200026]
[1659286886386,1.75565,1707.7,1707.2,2.09200026]
[1659286887162,5.45163,1707.6,1707.2,2.09200026]
[1659286887564,1.46312,1707.5,1707.2,2.39200026]
[1659286887931,1.46312,1707.5,1707.2,5.39200026]
[1659286888347,1.46312,1707.5,1707.2,1.11016653]
[1659286888724,6.62204,1707.6,1707.2,1.11016653]
[1659286889346,6.62204,1707.6,1707.3,0.01898722]
[1659286890358,9.62204,1707.6,1707.2,4.39874042]
[1659286891387,13.51461024,1707.6,1707.3,0.02036583]
[1659286891598,1.46312,1707.5,1707.3,0.02036583]
[1659286891780,5.57552932,1707.6,1707.3,0.02036583]
[1659286892157,9.46809956,1707.6,1707.3,0.02036583]
[1659286892694,9.46809956,1707.6,1707.3,0.03905058]
[1659286892896,7.03864932,1707.6,1707.3,0.03905058]
[1659286893257,11.22383956,1707.6,1707.3,0.03905058]
[1659286893491,1.46314,1707.5,1707.3,0.03905058]
[1659286895475,1.46314,1707.5,1707.2,1.09200026]
[1659286895476,6.79061696,1707.4,1707.2,1.09200026]
[1659286895688,8.0,1707.2,1706.8,0.05]
[1659286895879,6.79061696,1707.1,1706.5,7.4943]
[1659286896204,3.89257024,1707.0,1706.5,7.61831454]
[1659286896566,6.79061696,1707.1,1706.5,7.90374544]
[1659286897167,3.89257024,1707.0,1706.5,7.90374544]
[1659286897405,8.25436696,1707.1,1706.5,11.40374544]
[1659286897712,4.65452672,1707.1,1706.5,11.42634197]
[1659286897919,1.46367,1707.0,1706.5,11.42634197]
[1659286898070,1.46367,1707.0,1706.5,1.48204197]
[1659286898273,5.64898024,1707.0,1706.5,1.48204197]
[1659286898507,1.46383,1706.9,1706.5,1.48204197]
[1659286899271,5.4179,1706.8,1706.5,1.48204197]
[1659286899472,5.4179,1706.8,1706.6,0.02316683]
[1659286899815,6.88168,1706.8,1706.6,0.02316683]
[1659286899985,6.79061696,1706.7,1706.6,0.02316683]
[1659286900328,7.20714628,1706.7,1706.6,0.02316683]
[1659286900689,7.20714628,1706.7,1706.6,0.04518612]
[1659286901088,3.31457604,1706.7,1706.6,0.04518612]
[1659286902038,7.20714628,1706.7,1706.6,0.04518612]
[1659286902236,3.31457604,1706.7,1706.6,0.04518612]
[1659286902921,9.0551,1706.8,1706.6,0.63418612]
[1659286903121,0.05,1707.1,1706.6,0.63418612]
[1659286903122,5.4012,1706.7,1706.6,0.63418612]
[1659286903356,0.05,1707.1,1706.6,3.63418612]
[1659286903564,2.89804672,1707.0,1706.6,3.04518612]
[1659286903747,2.89804672,1707.0,1706.6,3.06777964]
[1659286903922,6.79061696,1707.0,1706.6,3.06777964]
[1659286904123,8.25426696,1707.0,1706.6,3.06777964]
[1659286904766,3.89257024,1706.9,1706.6,3.06777964]
[1659286904930,5.35634024,1706.9,1706.6,3.06777964]
[1659286905129,5.35634024,1706.9,1706.6,0.06777964]
[1659286905383,5.3848,1706.8,1706.6,0.06777964]
[1659286905820,13.70918118,1706.8,1706.6,0.06777964]
[1659286905979,9.81661094,1706.8,1706.6,0.06777964]
[1659286906328,6.84859,1706.8,1706.6,0.06777964]
[1659286906511,10.74116024,1706.8,1706.6,0.06777964]
[1659286906820,6.84859,1706.8,1706.6,0.06777964]
[1659286907985,10.74116024,1706.8,1706.6,0.06777964]
[1659286908187,6.84859,1706.8,1706.6,0.06777964]
[1659286908420,6.86243193,1706.7,1706.6,0.06777964]
[1659286908622,7.20714628,1706.7,1706.6,0.06777964]
[1659286909190,17.158,1706.6,1706.2,0.05]
[1659286909417,17.158,1706.6,1706.2,0.17320605]
[1659286909418,7.20714628,1706.5,1706.2,0.17320605]
[1659286909606,2.89804672,1706.4,1706.1,1.0]
[1659286910181,6.79061696,1706.4,1706.1,1.0]
[1659286910383,6.79061696,1706.3,1706.1,0.17750421]
[1659286910623,17.44861696,1706.2,1705.7,0.05]
[1659286910808,8.54817696,1706.1,1705.5,3.55]
[1659286911016,2.89804672,1706.0,1705.4,0.05]
[1659286911182,6.79061696,1706.0,1705.4,0.29589892]
[1659286911384,6.79061696,1706.0,1705.5,3.5]
[1659286911585,11.354,1706.1,1705.5,3.5]
[1659286911831,11.354,1706.1,1705.7,3.5]
[1659286912039,3.3347,1706.1,1705.7,3.5]
[1659286912182,3.3347,1706.1,1705.7,3.54308978]
[1659286912836,3.3347,1706.1,1705.8,3.0]
[1659286913064,2.89804672,1706.1,1705.8,3.3]
[1659286913269,8.4201,1706.3,1705.8,7.1]
[1659286913420,15.21071696,1706.3,1705.8,7.1]
[1659286913855,3.89257024,1706.2,1705.8,7.1]
[1659286914865,1.46431,1706.2,1705.8,7.1]
[1659286915170,5.35688024,1706.2,1705.8,7.1]
[1659286916340,1.46431,1706.2,1705.8,7.1]
[1659286916539,15.62724628,1706.3,1705.8,7.1]
[1659286916770,3.89257024,1706.2,1705.8,7.1]
[1659286917108,15.62724628,1706.3,1705.8,7.1]
[1659286917269,3.89257024,1706.2,1705.8,7.1]
[1659286917608,3.89257024,1706.2,1705.8,7.14429584]
[1659286917809,15.62724628,1706.3,1705.8,7.31639918]
[1659286917965,2.5,1706.2,1705.8,6.9949462]
[1659286918164,6.39257024,1706.2,1705.8,6.9949462]
[1659286918395,7.85686024,1706.2,1705.8,6.9949462]
[1659286918565,3.96429,1706.2,1705.8,7.01639918]
[1659286918766,7.85686024,1706.2,1705.8,7.01639918]
[1659286919090,5.35686024,1706.2,1705.8,7.01639918]
[1659286919276,5.35686024,1706.2,1705.8,7.31639918]
[1659286919807,1.46429,1706.2,1705.8,7.31639918]
[1659286921774,5.35686024,1706.2,1705.8,7.29355632]
[1659286921977,1.46429,1706.2,1705.8,7.29355632]
[1659286922178,5.35686024,1706.2,1705.8,7.29355632]
[1659286922378,1.46429,1706.2,1705.8,7.29355632]
[1659286922908,1.46429,1706.2,1705.8,7.28970872]
[1659286923217,5.35686024,1706.2,1705.8,7.28970872]
[1659286923416,1.46429,1706.2,1705.8,7.28970872]
[1659286924248,5.35686024,1706.2,1705.8,7.28970872]
[1659286924625,5.35686024,1706.2,1705.8,3.78970872]
[1659286924809,5.35686024,1706.2,1705.9,6.5]
[1659286925011,5.35686024,1706.2,1705.9,6.8]
[1659286925246,8.83662932,1706.3,1705.9,6.8]
[1659286925457,8.83662932,1706.3,1706.1,4.0]
[1659286925458,5.024,1706.3,1706.1,4.0]
[1659286925646,3.7142,1706.6,1706.1,4.3]
[1659286925818,3.7142,1706.6,1706.3,3.5]
[1659286925819,3.6642,1706.6,1706.3,3.5]
[1659286926158,8.147,1706.8,1706.3,7.39337345]
[1659286926311,8.147,1706.8,1706.4,3.0]
[1659286926312,13.538,1706.8,1706.4,3.0]
[1659286926762,1.46385,1706.7,1706.4,3.0]
[1659286926967,13.538,1706.8,1706.4,3.0]
[1659286927516,17.43057024,1706.8,1706.4,3.0]
[1659286927714,9.28357024,1706.8,1706.4,3.0]
[1659286928218,5.391,1706.8,1706.4,3.0]
[1659286928955,6.85474,1706.8,1706.4,3.0]
[1659286929467,5.391,1706.8,1706.4,3.0]
[1659286929822,5.391,1706.8,1706.4,3.0218974]
[1659286930352,6.85475,1706.8,1706.4,3.0218974]
[1659286930929,6.85475,1706.8,1706.4,3.04256989]
[1659286931155,5.391,1706.8,1706.4,3.22036681]
[1659286931571,5.391,1706.8,1706.5,3.8]
[1659286931781,5.391,1706.8,1706.6,3.0]
[1659286933167,4.08072932,1706.9,1706.6,3.0]
[1659286933379,4.66218,1707.0,1706.8,0.2]
[1659286933544,5.046,1707.2,1706.9,3.7]
[1659286933746,5.046,1707.2,1707.0,3.0]
[1659286934585,5.046,1707.2,1706.9,0.32806071]
[1659286937868,6.79061696,1707.1,1706.7,0.00233292]
[1659286938062,2.89804672,1707.0,1706.7,0.00233292]
[1659286938269,5.2854,1706.9,1706.7,0.00233292]
[1659286938479,5.2854,1706.9,1706.6,3.5174037]
[1659286939195,5.2854,1706.9,1706.8,0.01697292]
[1659286941249,3.6129,1707.1,1706.8,3.84130734]
[1659286941424,3.6129,1707.1,1706.9,3.0]
[1659286941823,5.0498,1707.3,1706.9,3.0]
[1659286942035,7.94784672,1707.3,1706.9,3.0]
[1659286942746,11.84041696,1707.3,1706.9,3.0]
[1659286942959,9.41119672,1707.3,1706.9,3.0]
[1659286943351,13.30376696,1707.3,1706.9,3.0]
[1659286943552,9.41119672,1707.3,1706.9,3.0]
[1659286943755,7.94784672,1707.3,1706.9,3.0]
[1659286944196,11.84041696,1707.3,1706.9,3.0]
[1659286944662,7.94784672,1707.3,1706.9,3.0]
[1659286945189,11.84041696,1707.3,1706.9,3.0]
[1659286945390,9.41115672,1707.3,1706.9,3.0]
[1659286946491,13.30372696,1707.3,1706.9,3.0]
[1659286946671,13.30064868,1707.3,1706.9,3.17228526]
[1659286946896,3.89257024,1707.2,1706.9,3.17228526]
[1659286947090,13.30064868,1707.3,1706.9,3.17228526]
[1659286947277,9.40807844,1707.3,1706.9,3.17228526]
[1659286947619,3.89257024,1707.2,1706.9,0.17228526]
[1659286947789,3.89257024,1707.2,1706.8,1.03526965]
[1659286947995,1.46363,1707.1,1706.8,1.03526965]
[1659286948595,1.46363,1707.1,1706.8,1.01829673]
[1659286949004,1.75636,1707.1,1706.8,1.01829673]
[1659286949210,1.75636,1707.1,1706.8,1.31829673]
[1659286949419,1.75636,1707.1,1706.8,4.31829673]
[1659286949926,1.46356,1707.0,1706.9,3.0]
[1659286950282,1.46356,1707.0,1706.8,1.31829673]
[1659286952083,1.46356,1707.0,1706.8,0.01829673]
[1659286952715,5.5192,1706.9,1706.8,0.01829673]
[1659286953835,5.5192,1706.9,1706.7,0.3]
[1659286954184,6.98286,1706.9,1706.7,0.3]
[1659286956700,1.46366,1706.9,1706.7,0.31701805]
[1659286961709,1.46366,1706.9,1706.7,3.31701805]
[1659286961948,1.46366,1706.9,1706.7,0.31701805]
[1659286962108,1.46366,1706.9,1706.7,3.31701805]
[1659286962302,1.46366,1706.9,1706.8,3.0]
[1659286962503,1.46366,1706.9,1706.8,0.3]
[1659286962744,1.46366,1706.9,1706.7,0.03539352]
[1659286963855,1.46366,1706.9,1706.8,0.01697292]
[1659286966671,1.46366,1706.9,1706.8,0.03455345]
[1659286966830,6.63216,1706.9,1706.8,0.03455345]
[1659286967762,6.63216,1706.9,1706.8,0.01758053]
[1659286968439,6.62930233,1706.9,1706.8,0.01758053]
[1659286976278,5.1685,1706.9,1706.8,0.01758053]
[1659286980503,5.1685,1706.9,1706.8,0.60658053]
[1659286980756,5.1685,1706.9,1706.8,0.31758053]
[1659286980964,5.1685,1706.9,1706.8,0.60658053]
[1659286981132,5.1685,1706.9,1706.8,0.0346496]
[1659286982161,5.1685,1706.9,1706.8,0.2346496]
[1659286982361,5.1685,1706.9,1706.8,3.7346496]
[1659286982544,5.1685,1706.9,1706.8,7.0346496]
[1659286982717,5.1685,1706.9,1706.8,8.4978196]
[1659286983169,0.05,1707.3,1707.0,0.2]
[1659286983330,1.46315,1707.5,1707.1,0.01328984]
[1659286983331,3.4444,1707.5,1707.1,0.01328984]
[1659286983521,3.4444,1707.5,1707.4,1.234]
[1659286983724,8.3741,1707.6,1707.4,1.534]
[1659286983965,5.3423,1707.6,1707.4,4.82544716]
[1659286984132,5.3423,1707.6,1707.5,3.0]
[1659286985354,5.3423,1707.6,1707.4,4.56738536]
[1659286988780,5.3423,1707.6,1707.5,3.0]
[1659286988958,5.33847016,1707.6,1707.4,1.56738536]
[1659286989160,8.23651688,1707.6,1707.4,1.56738536]
[1659286989393,2.89804672,1707.5,1707.4,0.33338536]
[1659286989606,2.89804672,1707.5,1707.4,0.03338536]
[1659286989607,9.05604672,1707.5,1707.4,0.03338536]
[1659286995683,2.89804672,1707.5,1707.4,0.03338536]
[1659286995821,9.05604672,1707.5,1707.4,0.03338536]
[1659286996498,2.89804672,1707.5,1707.4,0.03338536]
[1659286996692,9.05604672,1707.5,1707.4,0.03338536]
[1659286997504,2.89804672,1707.5,1707.4,0.03338536]
[1659286997702,9.05604672,1707.5,1707.4,0.03338536]
[1659286998289,2.89804672,1707.5,1707.4,0.03338536]
[1659286998732,9.05604672,1707.5,1707.4,0.03338536]
[1659286998934,9.05604672,1707.5,1707.0,1.46165074]
[1659286999137,13.14387672,1707.4,1707.0,0.17765074]
[1659286999294,2.89804672,1707.3,1706.7,0.05]
[1659286999511,8.34824672,1707.3,1706.6,2.32489999]
[1659286999741,8.34824672,1707.3,1706.6,1.52979999]
[1659287000335,8.34824672,1707.3,1706.6,5.12979999]
[1659287000543,9.04553672,1707.2,1706.6,5.17522282]
[1659287000712,5.86589382,1707.1,1706.6,5.17522282]
[1659287000915,2.89804672,1707.1,1706.8,1.234]
[1659287001107,1.46364,1707.0,1706.8,1.234]
[1659287001437,3.19076672,1707.1,1706.8,1.234]
[1659287001438,2.89804672,1707.1,1706.8,1.534]
[1659287001815,4.36157672,1707.1,1706.8,1.534]
[1659287002352,4.65429672,1707.1,1706.8,1.534]
[1659287002527,1.46361,1707.0,1706.8,1.534]
[1659287002851,1.46361,1707.0,1706.9,0.03753215]
[1659287003622,1.46361,1707.0,1706.9,0.03538463]
[1659287004254,2.89804672,1707.1,1706.9,0.03538463]
[1659287004463,5.4502,1707.3,1707.0,1.234]
[1659287004647,2.89804672,1707.2,1707.0,1.534]
[1659287005449,5.4502,1707.3,1707.0,1.534]
[1659287005664,5.4502,1707.3,1707.2,1.234]
[1659287005859,5.4502,1707.3,1707.2,1.534]
[1659287006840,4.88604,1707.4,1707.2,1.534]
[1659287007062,4.36128672,1707.4,1707.2,1.534]
[1659287008209,4.36128672,1707.4,1707.2,1.55351802]
[1659287008951,4.36128672,1707.4,1707.2,0.31951802]
[1659287009296,4.36128672,1707.4,1707.3,0.3]
[1659287010579,10.51928672,1707.4,1707.3,0.3]
[1659287010891,14.41185696,1707.4,1707.2,0.01951802]
[1659287011056,9.05604672,1707.3,1707.2,0.01951802]
[1659287011410,9.47257604,1707.3,1707.2,0.01951802]
[1659287011565,13.36514628,1707.3,1707.2,0.01951802]
[1659287013470,9.47257604,1707.3,1707.2,0.01951802]
[1659287015505,9.47257604,1707.3,1707.2,0.03566466]
[1659287016696,13.36514628,1707.3,1707.2,0.03566466]
[1659287017128,18.50874628,1707.3,1707.2,0.03566466]
[1659287019413,14.61617604,1707.3,1707.2,0.03566466]
[1659287020508,18.50874628,1707.3,1707.2,0.03566466]
[1659287021613,14.61617604,1707.3,1707.2,0.03566466]
[1659287023714,14.61617604,1707.3,1707.2,0.05358836]
[1659287025936,14.61226887,1707.3,1707.2,0.05358836]
[1659287026756,8.45426887,1707.3,1707.2,0.05358836]
[1659287049014,8.45066358,1707.3,1707.2,0.05358836]
[1659287050526,14.60866358,1707.3,1707.2,0.05358836]
[1659287051760,8.45066358,1707.3,1707.2,0.05358836]
[1659287053197,8.45066358,1707.3,1707.2,0.05068137]
[1659287053771,14.60866358,1707.3,1707.2,0.05068137]
[1659287055800,8.45066358,1707.3,1707.2,0.05068137]
[1659287059618,5.1436,1707.3,1707.2,0.63968137]
[1659287059860,13.838,1707.4,1707.2,2.17368137]
[1659287059861,10.2446,1707.4,1707.2,2.17368137]
[1659287060072,7.5913,1707.6,1707.3,0.2]
[1659287060212,2.89804672,1707.5,1707.3,0.2]
[1659287060415,2.89804672,1707.5,1707.4,1.234]
[1659287060614,2.89804672,1707.5,1707.4,1.534]
[1659287061665,2.89804672,1707.5,1707.4,1.55179073]
[1659287065545,12.01434672,1707.6,1707.4,1.58529529]
[1659287065713,12.01434672,1707.6,1707.4,1.76035413]
[1659287065913,8.36684672,1707.6,1707.4,1.76035413]
[1659287068859,9.82997672,1707.6,1707.4,1.76035413]
[1659287069071,9.82997672,1707.6,1707.4,0.52635413]
[1659287069230,9.82997672,1707.6,1707.4,0.22635413]
[1659287069926,2.89804672,1707.5,1707.4,0.22635413]
[1659287070171,5.86485119,1707.5,1707.4,0.22635413]
[1659287070721,2.89804672,1707.5,1707.4,0.22635413]
[1659287074941,2.89489538,1707.5,1707.4,0.22635413]
[1659287077845,2.89489538,1707.5,1707.4,0.22248921]
[1659287078245,10.51642538,1707.5,1707.4,0.19284957]
[1659287078727,10.51642538,1707.5,1707.4,0.19325258]
[1659287079684,10.51642538,1707.5,1707.4,0.21494847]
[1659287079884,10.51642538,1707.5,1707.4,0.21976189]
[1659287082847,10.51642538,1707.5,1707.4,0.19776189]
[1659287083162,10.51642538,1707.5,1707.4,0.19838023]
[1659287084019,10.51642538,1707.5,1707.4,0.22638939]
[1659287084661,6.158,1707.3,1707.0,0.05]
[1659287084847,16.40544,1707.1,1706.9,0.17154644]
[1659287085014,2.89804672,1707.0,1706.8,0.3]
[1659287085213,2.89804672,1707.0,1706.6,4.52979999]
[1659287085414,6.39994672,1707.0,1706.6,4.82979999]
[1659287085650,1.46392,1706.8,1706.6,4.82979999]
[1659287087793,1.46392,1706.8,1706.7,2.94308978]
[1659287087935,1.46392,1706.8,1706.7,6.11907414]
[1659287088136,0.05,1707.2,1707.0,0.3]
[1659287088335,5.4362,1707.3,1707.1,1.534]
[1659287088573,6.0404,1707.6,1707.3,1.234]
[1659287088779,2.89804672,1707.5,1707.3,1.234]
[1659287089142,2.89804672,1707.5,1707.3,1.534]
[1659287093554,2.89804672,1707.5,1707.3,1.70564477]
[1659287105916,4.36127672,1707.5,1707.3,1.70564477]
[1659287106552,4.35869497,1707.5,1707.3,1.70564477]
[1659287108511,2.89546497,1707.5,1707.3,1.70564477]
[1659287109154,2.11564405,1707.4,1707.3,3.04528211]
[1659287109355,2.11564405,1707.4,1707.3,10.72891717]
[1659287109554,2.11564405,1707.4,1707.3,14.62891717]
[1659287109800,2.11564405,1707.4,1707.3,19.98438741]
[1659287110276,2.11564405,1707.4,1707.3,20.16037177]
[1659287110495,2.11564405,1707.4,1707.3,16.46834696]
[1659287110798,2.11564405,1707.4,1707.3,12.57577672]
[1659287110962,2.11564405,1707.4,1707.3,12.42516647]
[1659287111601,2.11564405,1707.4,1707.3,8.74918211]
[1659287111765,2.11564405,1707.4,1707.3,15.74918211]
[1659287112094,2.01564405,1707.4,1707.3,15.74918211]
[1659287112587,2.01564405,1707.4,1707.3,8.74918211]
[1659287112940,2.01564405,1707.4,1707.3,9.14918211]
[1659287113533,2.01564405,1707.4,1707.3,16.14918211]
[1659287113733,0.05,1707.8,1707.4,8.0]
[1659287114040,0.05,1708.0,1707.7,1.534]
[1659287114240,6.55284672,1708.1,1708.0,1.234]
[1659287114531,5.3816,1708.3,1708.0,1.534]
[1659287114688,2.89804672,1708.2,1708.0,1.534]
[1659287115935,0.34471435,1708.1,1708.0,1.534]
[1659287116201,0.34471435,1708.1,1707.8,3.00233148]
[1659287116202,9.47257604,1708.1,1707.8,0.00233148]
[1659287116388,2.89804672,1708.0,1707.8,0.00233148]
[1659287116614,6.81892,1707.9,1707.8,0.00233148]
[1659287116789,9.71696672,1707.9,1707.5,1.234]
[1659287117422,9.71696672,1707.9,1707.5,1.534]
[1659287117623,9.71696672,1707.9,1707.5,4.534]
[1659287118207,9.71696672,1707.9,1707.6,3.0]
[1659287118395,9.71696672,1707.9,1707.5,1.534]
[1659287119202,3.19065672,1707.8,1707.5,1.234]
[1659287119432,2.89804672,1707.7,1707.3,2.40564477]
[1659287119616,1.46322,1707.6,1707.3,2.40564477]
[1659287119824,4.36126672,1707.6,1707.3,2.40564477]
[1659287120599,4.36126672,1707.6,1707.3,2.70564477]
[1659287120853,4.36126672,1707.6,1707.4,3.0]
[1659287121035,4.36126672,1707.6,1707.4,3.3]
[1659287122141,6.69022,1707.8,1707.5,1.25018078]
[1659287122345,9.03944,1708.1,1707.5,1.25018078]
[1659287122346,6.1636,1708.1,1707.7,1.534]
[1659287122512,14.93864672,1708.1,1707.9,1.234]
[1659287122718,16.40140672,1708.1,1707.9,1.534]
[1659287122947,13.13480672,1708.1,1707.9,1.534]
[1659287123110,8.774,1708.1,1707.9,1.534]
[1659287123905,11.72,1708.2,1708.0,0.24308978]
[1659287124122,11.72,1708.2,1708.1,1.234]
[1659287124327,15.0923,1708.6,1708.1,1.534]
[1659287124642,15.0923,1708.6,1708.4,1.234]
[1659287124643,2.89804672,1708.5,1708.4,1.234]
[1659287124823,2.89804672,1708.5,1708.4,1.534]
[1659287125545,2.89804672,1708.5,1708.1,1.234]
[1659287125750,2.89804672,1708.5,1708.1,1.534]
[1659287126108,2.89804672,1708.5,1708.1,1.536331]
[1659287126322,4.36052672,1708.5,1708.1,1.536331]
[1659287126560,2.89804672,1708.4,1708.1,1.536331]
[1659287126920,1.46258,1708.3,1708.1,1.536331]
[1659287127248,4.36062672,1708.3,1708.1,1.234]
[1659287127488,2.89804672,1708.2,1708.1,1.234]
[1659287127666,9.05604672,1708.2,1707.9,0.1755686]
[1659287127868,4.77750604,1708.1,1707.9,0.1755686]
[1659287128046,2.89804672,1708.0,1707.9,0.1755686]
[1659287128451,2.89804672,1708.0,1707.9,0.05703732]
[1659287128452,9.05604672,1708.0,1707.9,0.05703732]
[1659287128675,12.94930882,1708.0,1707.5,0.05]
[1659287128871,16.76703814,1707.9,1707.3,0.22164477]
[1659287129188,6.79130882,1707.8,1707.3,0.17164477]
[1659287129358,6.79130882,1707.7,1707.1,8.07001865]
[1659287129557,2.89804672,1707.6,1707.1,8.19719436]
[1659287129761,2.89804672,1707.6,1707.1,1.70409436]
[1659287130238,6.36444672,1707.6,1707.1,1.70409436]
[1659287130441,2.89804672,1707.5,1707.1,1.70409436]
[1659287130839,4.36142672,1707.5,1707.1,1.70409436]
[1659287131320,4.36142672,1707.5,1707.1,2.00409436]
[1659287131536,4.36142672,1707.5,1707.1,5.00409436]
[1659287132701,8.25468882,1707.5,1707.1,5.00409436]
[1659287133117,4.77795604,1707.5,1707.1,5.00409436]
[1659287134124,8.4022,1707.6,1707.4,0.2]
[1659287134301,4.9358,1707.6,1707.5,1.434]
[1659287134502,4.93241869,1707.6,1707.5,1.434]
[1659287134966,4.93241869,1707.6,1707.5,1.47708978]
[1659287138155,4.93241869,1707.6,1707.5,1.27708978]
[1659287139863,4.93241869,1707.6,1707.5,1.234]
[1659287149228,4.93241869,1707.6,1707.4,0.3]
[1659287149431,4.93241869,1707.6,1707.3,1.234]
[1659287149432,4.93241869,1707.6,1707.3,1.834]
[1659287150554,4.93241869,1707.6,1707.5,1.534]
[1659287151516,4.93241869,1707.6,1707.1,0.22717571]
[1659287151517,11.72372751,1707.6,1707.1,0.22717571]
[1659287151767,2.89804672,1707.2,1707.0,0.7276]
[1659287151952,12.93512722,1707.1,1706.6,0.05]
[1659287152157,12.93512722,1707.0,1706.4,0.05]
[1659287152451,12.93512722,1707.0,1706.2,12.61227939]
[1659287152452,6.77712722,1706.9,1706.2,12.61227939]
[1659287152669,6.158,1707.0,1706.2,12.56227939]
[1659287152670,7.19365654,1706.8,1706.2,12.56227939]
[1659287152878,6.77712722,1706.7,1706.2,12.73826375]
[1659287153041,6.77712722,1706.7,1706.2,12.91021789]
[1659287153420,6.77712722,1706.7,1706.2,6.37841789]
[1659287153665,6.77712722,1706.7,1706.2,6.97841789]
[1659287153980,2.89804672,1706.7,1706.3,3.0]
[1659287154132,6.77712722,1706.7,1706.3,3.0]
[1659287154529,6.77712722,1706.6,1706.3,3.0]
[1659287154881,3.31457604,1706.6,1706.3,3.0]
[1659287156854,4.77867604,1706.6,1706.3,3.0]
[1659287157669,0.41652932,1706.6,1706.3,3.0]
[1659287157840,9.14013,1706.9,1706.4,1.234]
[1659287157841,0.05,1706.9,1706.4,1.234]
[1659287158044,2.89804672,1706.8,1706.4,1.534]
[1659287158337,3.588,1707.1,1706.6,1.234]
[1659287158338,2.94804672,1707.0,1706.6,1.234]
[1659287158535,2.89804672,1706.9,1706.8,1.234]
[1659287159633,2.89804672,1706.9,1706.6,0.3]
[1659287159875,2.89804672,1706.9,1706.5,1.55216458]
[1659287160237,5.82584672,1706.9,1706.5,1.534]
[1659287160439,2.89804672,1706.8,1706.5,1.534]
[1659287160834,4.36184672,1706.8,1706.5,1.534]
[1659287161463,4.36184672,1706.8,1706.7,1.234]
[1659287161683,4.36184672,1706.8,1706.7,1.534]
[1659287161887,1.4638,1706.8,1706.7,1.534]
[1659287162179,0.41652932,1707.0,1706.7,1.534]
[1659287162378,3.31457604,1707.0,1706.7,1.534]
[1659287162589,2.89804672,1706.9,1706.7,0.3]
[1659287162888,0.34471435,1706.8,1706.3,0.05]
[1659287163094,0.34471435,1706.8,1706.6,1.234]
[1659287163095,3.24276107,1706.8,1706.6,1.234]
[1659287163463,3.24276107,1706.8,1706.3,4.0]
[1659287163464,3.24276107,1706.8,1706.4,1.234]
[1659287164191,3.24276107,1706.8,1706.4,1.53601815]
[1659287164686,4.70654107,1706.8,1706.4,1.53601815]
[1659287164855,4.70654107,1706.8,1706.4,0.3]
[1659287165106,4.70654107,1706.8,1706.3,3.01816671]
[1659287165107,4.70654107,1706.8,1706.3,3.31816671]
[1659287165436,4.70654107,1706.8,1706.4,1.234]
[1659287167315,8.58562157,1706.8,1706.4,1.234]
[1659287167541,0.29279,1706.7,1706.4,1.234]
[1659287167738,0.29279,1706.7,1706.3,3.61816671]
[1659287167739,4.46390497,1706.6,1706.3,3.6]
[1659287167906,12.20125169,1706.6,1706.3,3.6]
[1659287168855,12.49406169,1706.6,1706.3,3.3]
[1659287169057,9.56590169,1706.6,1706.3,3.3]
[1659287169289,1.46407,1706.5,1706.3,3.3]
[1659287170247,1.46407,1706.5,1706.4,3.0]
[1659287170448,1.46407,1706.5,1706.2,2.06843353]
[1659287170649,1.46407,1706.5,1706.2,5.06843353]